fUST/lending_fUST_20250725
["ID","MTS","AMOUNT","RATE_DAILY","PERIOD"]
[374706813,1753420245786,-367.545955,0.0002602,7]
[374706815,1753420245795,-367.545955,0.0002602,7]
[374706817,1753420245805,-367.545955,0.0002602,7]
[374706819,1753420245814,-367.545955,0.0002602,7]
[374706821,1753420245824,-367.545955,0.0002602,7]
[374706823,1753420245834,-367.545955,0.0002602,7]
[374706825,1753420245843,-367.545955,0.0002602,7]
[374706827,1753420245853,-367.545955,0.0002602,7]
[374706829,1753420245862,-367.545955,0.0002602,7]
[374706831,1753420245872,-367.545955,0.0002602,7]
[374706833,1753420245882,-367.545955,0.0002602,7]
[374706835,1753420245892,-367.545955,0.0002602,7]
[374706837,1753420245901,-367.545955,0.0002602,7]
[374706839,1753420245911,-367.545955,0.0002602,7]
[374706841,1753420245921,-367.545955,0.0002602,7]
[374706843,1753420245931,-367.545955,0.0002602,7]
[374706845,1753420245940,-367.545955,0.0002602,7]
[374706847,1753420245949,-367.545953,0.0002602,7]
[374706849,1753420245959,-887.3270468,0.00026021,2]
[374706851,1753420245968,-151.0,0.00026021,7]
[374706853,1753420245978,-151.0,0.00026021,7]
[374706855,1753420245987,-1003.79,0.00026021,7]
[374706857,1753420245997,-151.0,0.00026021,7]
[374706859,1753420246007,-151.0,0.00026021,7]
[374706861,1753420246016,-80.63015842,0.00026021,2]
[374706872,1753420246114,460.0,0.00016867,2]
[374707140,1753420248631,-440.484,0.00017137,2]
[374707583,1753420253556,477.56,0.00016866,2]
[374707848,1753420256141,445.15281155,0.00017,2]
[374707852,1753420256167,4554.84718845,0.00017,2]
[374707993,1753420261846,460.0,0.00016867,2]
[374707994,1753420263825,460.0,0.00016864,2]
[374707995,1753420267237,460.0,0.00016864,2]
[374707996,1753420268606,299.642146,0.00016627,2]
[374707997,1753420269087,299.642146,0.00016893,2]
[374707998,1753420281243,3465.86851955,0.00017,2]
[374707999,1753420281268,1534.13148045,0.00017,2]
[374708000,1753420288532,460.0,0.00016864,2]
[374708001,1753420290149,460.0,0.00016864,2]
[374708002,1753420297168,800.653636,0.00017,2]
[374708003,1753420299086,460.0,0.00016864,2]
[374708005,1753420333584,460.0,0.00016864,2]
[374708006,1753420334724,460.0,0.00016866,2]
[374708007,1753420338912,460.0,0.00016864,2]
[374708008,1753420341532,460.0,0.00016864,2]
[374708009,1753420344744,152.8253593,7.1e-07,2]
[374708010,1753420344858,152.8253593,7.1e-07,2]
[374708011,1753420344968,152.8253593,7.1e-07,2]
[374708012,1753420345066,152.8253593,7.1e-07,2]
[374708013,1753420345183,152.8253593,7.1e-07,2]
[374708014,1753420345269,152.8253593,7.1e-07,2]
[374708015,1753420345358,152.8253593,7.1e-07,2]
[374708016,1753420345463,152.8253593,7.1e-07,2]
[374708018,1753420375776,3222.61200915,0.0001635,2]
[374708019,1753420375800,6777.38799085,0.0001635,2]
[374708020,1753420376520,460.0,0.00016866,2]
[374708021,1753420401633,460.0,0.00016864,2]
[374708022,1753420453668,477.56,0.00016864,2]
[374708023,1753420469981,1825.05200915,0.00016321,2]
[374708024,1753420470005,5210.08033435,0.00016321,2]
[374708025,1753420471556,460.0,0.00016864,2]
[374708026,1753420499106,398.06750928,0.00016864,2]
[374708027,1753420516142,460.0,0.00016874,2]
[374708028,1753420534494,460.0,0.00016869,2]
[374708029,1753420570696,175.9491513,0.00016621,2]
[374708030,1753420589142,2135.018645,0.00016234,2]
[374708031,1753420616317,460.0,0.00016864,2]
[374708033,1753420646093,152.82535929,7.1e-07,2]
[374708036,1753420737331,88.05900078,0.00017,2]
[374708037,1753420737356,74.94099922,0.00017,2]
[374708038,1753420751713,207.62699867,0.00016962,2]
[374708039,1753420756712,207.62699866,0.00016977,2]
[374708040,1753420761676,207.62699866,0.00016991,2]
[374708041,1753420810890,-154.92638066,0.00017034,2]
[374708042,1753420810913,-36.93341009,0.00017063,2]
[374708043,1753420812775,-117.99297054,0.00017063,2]
[374708044,1753420812796,-154.92638063,0.00017091,2]
[374708045,1753420812818,-26.05939798,0.0001712,2]
[374708046,1753420838624,-263.46821644,0.00017134,2]
[374708047,1753420840598,-342.18570822,0.00017134,2]
[374708048,1753420842626,-369.90025261,0.00017134,2]
[374708049,1753420847170,-224.44582273,0.00017134,2]
[374708050,1753420847194,-92.39510314,0.00017134,2]
[374708051,1753420849607,-207.60489686,0.00017134,2]
[374708052,1753420849629,-194.37240103,0.00017134,2]
[374708053,1753420852005,-105.62759897,0.00017134,2]
[374708054,1753420852033,-185.09288198,0.00017134,2]
[374708055,1753420853806,-318.85542016,0.00017134,2]
[374708056,1753420858500,-168.86465845,0.00017134,2]
[374708057,1753420877154,460.0,0.00016864,2]
[374708058,1753420882512,-283.79336328,0.00017035,2]
[374708059,1753420882536,-11.67444601,0.00017134,2]
[374708060,1753420884904,-249.72485504,0.00017134,2]
[374708061,1753420888915,-265.78773836,0.00017134,2]
[374708062,1753420888941,-1.09143808,0.00017134,2]
[374708064,1753420891360,-255.23821254,0.00017134,2]
[374708065,1753420897601,-43.67034938,0.00017134,2]
[374708066,1753420897624,-138.66559235,0.00017134,2]
[374708067,1753420899775,-29.33440765,0.00017134,2]
[374708068,1753420899797,-139.59922482,0.00017135,2]
[374708069,1753420901509,8842.17800479,0.00016236,2]
[374708070,1753420901534,10000.0,0.00016236,2]
[374708071,1753420901558,6057.82199521,0.00016236,2]
[374708072,1753420904809,-299.89501692,0.00017135,2]
[374708073,1753420904834,-146.18426886,0.00017135,2]
[374708074,1753420930482,-214.46282637,0.00017135,2]
[374708075,1753420938101,-99.35290477,0.00017135,2]
[374708076,1753420938126,-200.08410698,0.00017135,2]
[374708077,1753420939988,-162.22675985,0.00017135,2]
[374708078,1753420942586,-97.68913317,0.00017135,2]
[374708079,1753420942610,-455.89987493,0.00017135,2]
[374708080,1753420943814,-4.10012507,0.00017135,2]
[374708081,1753420943837,-451.79974986,0.00017135,2]
[374708082,1753420947847,-8.20025014,0.00017135,2]
[374708083,1753420947872,-282.89194513,0.00017135,2]
[374708084,1753420953460,-177.10805487,0.00017135,2]
[374708085,1753420953484,-178.06864147,0.00017135,2]
[374708086,1753420958573,-121.93135853,0.00017135,2]
[374708087,1753420958596,-44.39831923,0.00017136,2]
[374708088,1753420960494,-219.3784528,0.00017136,2]
[374708089,1753420964135,-256.52692319,0.00017136,2]
[374708090,1753420966595,-196.77384203,0.00017136,2]
[374708091,1753420969377,-221.73862961,0.00017136,2]
[374708092,1753420971698,-219.99682887,0.00017136,2]
[374708093,1753420973290,-44.79484554,0.00017136,2]
[374708094,1753420973316,-148.61964531,0.00017136,2]
[374708095,1753420978042,-236.15479901,0.00017136,2]
[374708096,1753421005889,-204.76178746,0.00017135,2]
[374708097,1753421007773,-95.23821254,0.00017135,2]
[374708098,1753421007799,-211.52555568,0.00017136,2]
[374708099,1753421007823,-72.07045823,0.00017136,2]
[374708100,1753421009615,-166.22870402,0.00017136,2]
[374708101,1753421012391,-281.88004638,0.00017135,2]
[374708102,1753421017231,-178.11995362,0.00017135,2]
[374708103,1753421017262,-65.02157653,0.00017136,2]
[374708104,1753421020124,-183.43147409,0.00017136,2]
[374708105,1753421024303,-211.54694938,0.00017136,2]
[374708106,1753421024328,-120.56672649,0.00017136,2]
[374708108,1753421165876,545.43821,0.00013699,2]
[374708111,1753421173786,194.174357,0.00016621,2]
[374708112,1753421174163,299.16050111,0.00016622,2]
[374708113,1753421212883,1220.4966429,0.00016464,2]
[374708114,1753421254776,846.32392378,0.00017,2]
[374708126,1753421258146,214.24675925,0.00016864,2]
[374708128,1753421292938,415.02203767,0.00010618,2]
[374708129,1753421295031,207.31557308,0.000125,2]
[374708130,1753421295055,10000.0,0.000125,2]
[374708131,1753421295079,1172.02961662,0.000125,2]
[374708132,1753421306204,277.7617622,0.00014114,2]
[374708133,1753421308102,282.60943641,0.0001,2]
[374708139,1753421313365,7039.11728174,0.00017,2]
[374708140,1753421317619,580.57739805,0.000149,2]
[374708141,1753421317879,647.90450498,0.0001,2]
[374708142,1753421317904,352.09549502,0.0001,2]
[374708143,1753421322190,210.69975774,0.00016,2]
[374708144,1753421323629,7300.61291313,0.0001,2]
[374708147,1753421365179,460.0,0.00016864,2]
[374708234,1753421436934,-460.0,0.00017135,2]
[374708235,1753421436946,-300.0,0.00017135,2]
[374708236,1753421436956,-300.0,0.00017135,2]
[374708237,1753421436966,-1200.0,0.00017135,2]
[374708238,1753421436976,-417.75493965,0.00017136,2]
[374708251,1753421438173,-42.24506035,0.00017136,2]
[374708253,1753421438184,-460.0,0.00017136,2]
[374708255,1753421438194,-460.0,0.00017136,2]
[374708257,1753421438203,-281.46974396,0.00017136,2]
[374708266,1753421438286,-178.53025604,0.00017136,2]
[374708268,1753421438296,-460.0,0.00017136,2]
[374708270,1753421438306,-460.0,0.00017136,2]
[374708272,1753421438316,-460.0,0.00017136,2]
[374708274,1753421438325,-460.0,0.00017136,2]
[374708276,1753421438335,-460.0,0.00017136,2]
[374708278,1753421438345,-460.0,0.00017138,2]
[374708279,1753421438354,-460.0,0.00017138,2]
[374708280,1753421438363,-193.36787016,0.00017158,2]
[374708281,1753421438380,-500.0,0.00017242,2]
[374708282,1753421438391,-583.1973292,0.00017242,2]
[374708283,1753421438400,-500.0,0.00017242,2]
[374708284,1753421438409,-500.0,0.00017242,2]
[374708285,1753421438419,-500.0,0.00017242,2]
[374708286,1753421438428,-500.0,0.00017242,2]
[374708287,1753421438437,-500.0,0.00017242,2]
[374708288,1753421438446,-500.0,0.00017242,2]
[374708289,1753421438456,-453.01797607,0.00017242,2]
[374708290,1753421438465,-598.2997438,0.00017242,2]
[374708291,1753421438474,-500.0,0.00017242,2]
[374708292,1753421438483,-500.0,0.00017242,2]
[374708293,1753421438492,-500.0,0.00017242,2]
[374708294,1753421438501,-507.71758591,0.00017242,2]
[374708295,1753421438510,-460.0,0.00017247,2]
[374708296,1753421438519,-460.0,0.00017247,2]
[374708297,1753421438528,-460.0,0.00017247,2]
[374708298,1753421438538,-460.0,0.00017248,2]
[374708299,1753421438547,-460.0,0.00017248,2]
[374708300,1753421438556,-460.0,0.00017248,2]
[374708301,1753421438565,-460.0,0.00017248,2]
[374708302,1753421438574,-332.4411603,0.00017248,2]
[374708303,1753421438583,-460.0,0.00017248,2]
[374708304,1753421438593,-895.19007239,0.0001731,2]
[374708305,1753421438602,-400.0,0.00017407,2]
[374708306,1753421438612,-180.0,0.00017408,2]
[374708307,1753421438624,-460.0,0.00017408,2]
[374708308,1753421438634,-460.0,0.00017408,2]
[374708309,1753421438643,-460.0,0.00017408,2]
[374708310,1753421438652,-460.0,0.00017408,2]
[374708311,1753421438661,-460.0,0.00017408,2]
[374708312,1753421438670,-460.0,0.00017408,2]
[374708313,1753421438679,-460.0,0.00017408,2]
[374708314,1753421438689,-327.82824075,0.00017408,2]
[374708315,1753421438698,-360.15,0.00017409,2]
[374708316,1753421438708,-495.12,0.00017409,2]
[374708317,1753421438717,-460.0,0.00017409,2]
[374708318,1753421438726,-460.0,0.00017409,2]
[374708319,1753421438736,-460.0,0.00017409,2]
[374708320,1753421438745,-464.27507111,0.0001741,2]
[374708321,1753421438754,-460.0,0.0001741,2]
[374708322,1753421438764,-460.0,0.0001741,2]
[374708323,1753421438773,-460.0,0.0001741,2]
[374708324,1753421438782,-460.0,0.0001741,2]
[374708325,1753421438790,-460.0,0.0001741,2]
[374708326,1753421438799,-460.0,0.0001741,2]
[374708327,1753421438808,-460.0,0.0001741,2]
[374708328,1753421438818,-460.0,0.0001741,2]
[374708329,1753421438827,-460.0,0.0001741,2]
[374708330,1753421438836,-460.0,0.0001741,2]
[374708331,1753421438847,-460.0,0.0001741,2]
[374708332,1753421438857,-460.0,0.0001741,2]
[374708333,1753421438867,-460.0,0.0001741,2]
[374708334,1753421438877,-895.82,0.0001741,2]
[374708335,1753421438886,-460.0,0.0001741,2]
[374708336,1753421438895,-460.0,0.0001741,2]
[374708337,1753421438905,-460.0,0.00017412,2]
[374708339,1753421438915,-460.0,0.00017412,2]
[374708340,1753421438924,-460.0,0.00017521,2]
[374708341,1753421438934,-160.14115605,0.00017521,2]
[374708342,1753421438943,-460.0,0.00017521,2]
[374708343,1753421438953,-460.0,0.00017522,2]
[374708344,1753421438962,-460.0,0.00017522,2]
[374708345,1753421438972,-460.0,0.00017522,2]
[374708346,1753421438981,-460.0,0.00017522,2]
[374708347,1753421438991,-460.0,0.00017522,2]
[374708348,1753421439000,-316.06,0.00017575,3]
[374708349,1753421439009,-653.79,0.00017575,3]
[374708350,1753421439018,-326.9,0.00017575,3]
[374708351,1753421439028,-163.45,0.00017575,3]
[374708352,1753421439037,-490.35,0.00017575,3]
[374708353,1753421439047,-955.57379445,0.00017582,2]
[374708354,1753421439056,-3440.27428618,0.00017582,2]
[374708355,1753421439066,-206.21275219,0.00017584,2]
[374708356,1753421439077,-461.49150646,0.00017584,2]
[374708357,1753421439086,-460.0,0.00017584,2]
[374708358,1753421439097,-460.0,0.00017584,2]
[374708359,1753421439107,-460.0,0.00017584,2]
[374708360,1753421439117,-465.99757499,0.00017584,2]
[374708361,1753421439127,-460.0,0.00017584,2]
[374708362,1753421439136,-460.0,0.00017584,2]
[374708363,1753421439146,-460.0,0.00017584,2]
[374708364,1753421439155,-329871.65959419,0.00017585,2]
[374708365,1753421439166,-460.0,0.00017682,2]
[374708366,1753421439175,-460.0,0.00017682,2]
[374708367,1753421439185,-460.0,0.00017682,2]
[374708368,1753421439194,-460.0,0.00017682,2]
[374708369,1753421439204,-460.0,0.00017682,2]
[374708370,1753421439214,-460.0,0.00017682,2]
[374708371,1753421439223,-460.0,0.00017682,2]
[374708372,1753421439233,-460.0,0.00017683,2]
[374708373,1753421439243,-460.0,0.00017683,2]
[374708374,1753421439254,-460.0,0.00017683,2]
[374708375,1753421439264,-460.0,0.00017684,2]
[374708376,1753421439274,-460.0,0.00017684,2]
[374708377,1753421439284,-460.0,0.00017684,2]
[374708378,1753421439295,-460.0,0.00017684,2]
[374708379,1753421439304,-460.0,0.00017684,2]
[374708380,1753421439314,-460.0,0.00017684,2]
[374708381,1753421439324,-460.0,0.00017684,2]
[374708382,1753421439334,-895.82,0.00017684,2]
[374708383,1753421439345,-460.0,0.00017684,2]
[374708384,1753421439355,-460.0,0.00017684,2]
[374708385,1753421439365,-174.66,0.00017686,2]
[374708386,1753421439376,-239.33,0.00017686,2]
[374708387,1753421439389,-412.54328735,0.00017795,2]
[374708388,1753421439399,-460.0,0.00017795,2]
[374708389,1753421439408,-460.0,0.00017796,2]
[374708390,1753421439417,-460.0,0.00017796,2]
[374708391,1753421439429,-460.0,0.00017796,2]
[374708392,1753421439438,-460.0,0.00017796,2]
[374708393,1753421439448,-460.0,0.00017796,2]
[374708394,1753421439458,-462.63956107,0.00017858,2]
[374708395,1753421439468,-460.0,0.00017858,2]
[374708396,1753421439478,-460.0,0.00017858,2]
[374708397,1753421439488,-460.0,0.00017858,2]
[374708398,1753421439497,-3375.17831294,0.000179,2]
[374708399,1753421439507,-460.0,0.00017956,2]
[374708400,1753421439516,-460.0,0.00017956,2]
[374708401,1753421439525,-460.0,0.00017956,2]
[374708402,1753421439535,-460.0,0.00017956,2]
[374708403,1753421439544,-460.0,0.00017956,2]
[374708404,1753421439555,-460.0,0.00017956,2]
[374708405,1753421439565,-460.0,0.00017956,2]
[374708406,1753421439574,-221.70083775,0.00017957,2]
[374708407,1753421439585,-460.0,0.00017957,2]
[374708408,1753421439594,-460.0,0.00017957,2]
[374708409,1753421439604,-460.0,0.00017958,2]
[374708410,1753421439613,-460.0,0.00017958,2]
[374708411,1753421439624,-460.0,0.00017958,2]
[374708412,1753421439633,-460.0,0.00017958,2]
[374708413,1753421439643,-460.0,0.00017958,2]
[374708414,1753421439652,-460.0,0.00017958,2]
[374708415,1753421439662,-895.82,0.00017958,2]
[374708416,1753421439672,-460.0,0.00017958,2]
[374708417,1753421439682,-460.0,0.00017958,2]
[374708418,1753421439692,-63176.27847829,0.00018,2]
[374708419,1753421439702,-159.97165851,0.00018,2]
[374708420,1753421439712,-200.0,0.00018,2]
[374708421,1753421439722,-32704.32545144,0.00018,2]
[374708422,1753421439732,-27608.47800808,0.00018,2]
[374708423,1753421439742,-5934.73718292,0.00018,2]
[374708424,1753421439751,-460.0,0.00018069,2]
[374708425,1753421439761,-592.3,0.0001807,2]
[374708426,1753421439771,-460.0,0.0001807,2]
[374708427,1753421439780,-460.0,0.0001807,2]
[374708428,1753421439790,-460.0,0.0001807,2]
[374708429,1753421439799,-460.0,0.0001807,2]
[374708430,1753421439809,-460.0,0.00018132,2]
[374708431,1753421439818,-460.0,0.00018132,2]
[374708432,1753421439827,-460.0,0.00018132,2]
[374708433,1753421439836,-3375.17831282,0.0001821,2]
[374708434,1753421439846,-460.0,0.0001823,2]
[374708435,1753421439855,-460.0,0.0001823,2]
[374708436,1753421439865,-460.0,0.0001823,2]
[374708437,1753421439875,-460.0,0.0001823,2]
[374708439,1753421439884,-460.0,0.0001823,2]
[374708441,1753421439894,-460.0,0.0001823,2]
[374708443,1753421439904,-460.0,0.0001823,2]
[374708444,1753421439916,-460.0,0.00018231,2]
[374708445,1753421439925,-460.0,0.00018231,2]
[374708446,1753421439935,-460.0,0.00018232,2]
[374708447,1753421439944,-460.0,0.00018232,2]
[374708448,1753421439954,-460.0,0.00018232,2]
[374708449,1753421439964,-460.0,0.00018232,2]
[374708450,1753421439972,-460.0,0.00018232,2]
[374708451,1753421439982,-460.0,0.00018232,2]
[374708452,1753421439991,-895.82,0.00018232,2]
[374708453,1753421440001,-460.0,0.00018232,2]
[374708454,1753421440010,-460.0,0.00018232,2]
[374708455,1753421440020,-460.0,0.00018343,2]
[374708456,1753421440030,-460.0,0.00018344,2]
[374708457,1753421440039,-396.3,0.00018344,2]
[374708458,1753421440049,-460.0,0.00018406,2]
[374708459,1753421440059,-460.0,0.00018406,2]
[374708460,1753421440068,-460.0,0.00018406,2]
[374708461,1753421440077,-460.0,0.00018504,2]
[374708462,1753421440087,-460.0,0.00018504,2]
[374708463,1753421440096,-460.0,0.00018504,2]
[374708464,1753421440105,-460.0,0.00018504,2]
[374708465,1753421440114,-460.0,0.00018504,2]
[374708466,1753421440125,-460.0,0.00018504,2]
[374708467,1753421440134,-460.0,0.00018504,2]
[374708468,1753421440143,-460.0,0.00018505,2]
[374708469,1753421440153,-460.0,0.00018505,2]
[374708470,1753421440162,-460.0,0.00018506,2]
[374708471,1753421440171,-460.0,0.00018506,2]
[374708472,1753421440181,-460.0,0.00018506,2]
[374708473,1753421440190,-460.0,0.00018506,2]
[374708474,1753421440199,-363.24,0.00018506,2]
[374708475,1753421440208,-895.82,0.00018506,2]
[374708476,1753421440218,-460.0,0.00018506,2]
[374708477,1753421440227,-460.0,0.00018506,2]
[374708478,1753421440237,-3375.17831282,0.00018521,2]
[374708479,1753421440246,-895.19007236,0.00018537,2]
[374708480,1753421440256,-460.0,0.00018617,2]
[374708481,1753421440265,-390.883,0.00018618,2]
[374708482,1753421440275,-460.0,0.0001868,2]
[374708483,1753421440284,-460.0,0.0001868,2]
[374708484,1753421440294,-460.0,0.0001868,2]
[374708485,1753421440304,-420.0,0.00018713,2]
[374708486,1753421440314,-460.0,0.00018778,2]
[374708487,1753421440323,-460.0,0.00018778,2]
[374708489,1753421440332,-460.0,0.00018778,2]
[374708490,1753421440342,-460.0,0.00018778,2]
[374708492,1753421440351,-460.0,0.00018778,2]
[374708494,1753421440361,-460.0,0.00018778,2]
[374708496,1753421440372,-460.0,0.00018779,2]
[374708497,1753421440385,-460.0,0.00018779,2]
[374708499,1753421440395,-244.75981538,0.0001878,2]
[374708501,1753421440404,-460.0,0.0001878,2]
[374708502,1753421440414,-460.0,0.0001878,2]
[374708503,1753421440425,-460.0,0.0001878,2]
[374708504,1753421440434,-895.82,0.0001878,2]
[374708505,1753421440443,-460.0,0.0001878,2]
[374708506,1753421440455,-460.0,0.0001878,2]
[374708507,1753421440466,-1304.0,0.00018805,2]
[374708508,1753421440475,-3375.17831282,0.00018831,2]
[374708509,1753421440484,-160.0,0.00018872,2]
[374708510,1753421440494,-460.0,0.00018891,2]
[374708511,1753421440503,-2915.97057806,0.000189,2]
[374708513,1753421440512,-632.12,0.00018945,3]
[374708514,1753421440521,-1307.58,0.00018945,3]
[374708515,1753421440531,-653.8,0.00018945,3]
[374708517,1753421440540,-326.9,0.00018945,3]
[374708518,1753421440549,-460.0,0.00018954,2]
[374708519,1753421440559,-425.47845576,0.00018954,2]
[374708520,1753421440569,-223.80317226,0.00019,20]
[374708521,1753421440579,-18000.0,0.00019,2]
[374708522,1753421440588,-460.0,0.00019052,2]
[374708523,1753421440599,-460.0,0.00019052,2]
[374708524,1753421440608,-460.0,0.00019052,2]
[374708525,1753421440619,-460.0,0.00019052,2]
[374708526,1753421440630,-460.0,0.00019052,2]
[374708527,1753421440639,-460.0,0.00019052,2]
[374708528,1753421440648,-460.0,0.00019053,2]
[374708529,1753421440658,-460.0,0.00019053,2]
[374708530,1753421440668,-260.48,0.00019054,2]
[374708531,1753421440677,-460.0,0.00019054,2]
[374708532,1753421440686,-460.0,0.00019054,2]
[374708533,1753421440696,-895.82,0.00019054,2]
[374708534,1753421440705,-460.0,0.00019054,2]
[374708535,1753421440715,-460.0,0.00019054,2]
[374708536,1753421440724,-264.92728108,0.00019086,6]
[374708537,1753421440734,-3375.17831282,0.00019141,2]
[374708538,1753421440743,-460.0,0.00019165,2]
[374708539,1753421440753,-306.940142,0.00019178,2]
[374708540,1753421440763,-1718.86412499,0.00019205,5]
[374708541,1753421440772,-460.0,0.00019228,2]
[374708542,1753421440781,-160.0,0.00019271,2]
[374708543,1753421440791,-840.4016166,0.00019271,2]
[374708544,1753421440800,-160.0,0.00019271,2]
[374708545,1753421440810,-214.7599002,0.00019271,2]
[374708546,1753421440819,-215.93003454,0.00019271,2]
[374708547,1753421440831,-160.0,0.00019271,2]
[374708548,1753421440840,-12627.2413641,0.00019271,2]
[374708549,1753421440850,-160.0,0.00019271,2]
[374708550,1753421440859,-160.0,0.00019289,2]
[374708551,1753421440870,-160.0,0.00019289,2]
[374708552,1753421440880,-526.33361954,0.00019289,2]
[374708553,1753421440890,-231.20877768,0.00019289,2]
[374708554,1753421440899,-460.0,0.00019326,2]
[374708555,1753421440908,-460.0,0.00019326,2]
[374708556,1753421440918,-460.0,0.00019326,2]
[374708557,1753421440927,-460.0,0.00019326,2]
[374708558,1753421440938,-460.0,0.00019326,2]
[374708559,1753421440947,-586.856,0.00019326,2]
[374708560,1753421440956,-460.0,0.00019327,2]
[374708561,1753421440967,-442.1,0.00019327,2]
[374708562,1753421440976,-460.0,0.00019328,2]
[374708563,1753421440986,-460.0,0.00019328,2]
[374708564,1753421440995,-895.82,0.00019328,2]
[374708565,1753421441006,-460.0,0.00019328,2]
[374708566,1753421441015,-460.0,0.00019328,2]
[374708567,1753421441024,-955.57379442,0.00019395,2]
[374708568,1753421441033,-260.0,0.0001942,2]
[374708569,1753421441043,-460.0,0.00019439,2]
[374708570,1753421441052,-3375.17831282,0.00019452,2]
[374708571,1753421441062,-577.95616817,0.00019475,2]
[374708572,1753421441071,-460.0,0.00019502,2]
[374708573,1753421441081,-224.0,0.00019589,3]
[374708574,1753421441090,-460.0,0.000196,2]
[374708575,1753421441099,-460.0,0.000196,2]
[374708576,1753421441109,-460.0,0.000196,2]
[374708577,1753421441118,-460.0,0.000196,2]
[374708578,1753421441129,-460.0,0.000196,2]
[374708579,1753421441138,-460.0,0.00019601,2]
[374708580,1753421441147,-460.0,0.00019602,2]
[374708581,1753421441157,-460.0,0.00019602,2]
[374708582,1753421441166,-895.82,0.00019602,2]
[374708583,1753421441176,-460.0,0.00019602,2]
[374708584,1753421441185,-460.0,0.00019602,2]
[374708585,1753421441194,-151.0,0.000197,2]
[374708586,1753421441204,-460.0,0.00019713,2]
[374708587,1753421441214,-3375.17831282,0.00019762,2]
[374708588,1753421441223,-895.19007236,0.00019765,2]
[374708589,1753421441233,-460.0,0.00019776,2]
[374708590,1753421441243,-165.59307072,0.000198,3]
[374708591,1753421441252,-460.0,0.00019874,2]
[374708592,1753421441262,-460.0,0.00019874,2]
[374708593,1753421441271,-460.0,0.00019874,2]
[374708594,1753421441281,-460.0,0.00019874,2]
[374708595,1753421441291,-228.75,0.00019874,2]
[374708596,1753421441300,-460.0,0.00019875,2]
[374708597,1753421441310,-460.0,0.00019876,2]
[374708598,1753421441319,-460.0,0.00019876,2]
[374708599,1753421441328,-895.82,0.00019876,2]
[374708600,1753421441338,-460.0,0.00019876,2]
[374708601,1753421441349,-460.0,0.00019876,2]
[374708602,1753421441358,-529798.87015763,0.000199,2]
[374708603,1753421441379,-313385.74431259,0.000199,2]
[374708604,1753421441389,-360.0,0.00019968,2]
[374708605,1753421441401,-460.0,0.00019987,2]
[374708606,1753421441411,-3440.27428616,0.00019991,2]
[374708607,1753421441535,-6938.76078138,0.0002,2]
[374708608,1753421441545,-4650.63521269,0.0002,2]
[374708609,1753421441555,-16000.0,0.0002,2]
[374708610,1753421441565,-35866.77406443,0.0002,2]
[374708611,1753421441574,-15620.20084894,0.0002,2]
[374708612,1753421441586,-485.15639243,0.0002,2]
[374708613,1753421442208,-460.0,0.00017584,2]
[374708614,1753421442219,-6674.51504907,0.0002,2]
[374708624,1753421443334,-486.46,0.00017408,2]
[374708625,1753421443344,-460.0,0.00017858,2]
[374708626,1753421443353,-460.0,0.00018132,2]